fUSD/lending_fUSD_20250629
["ID","MTS","AMOUNT","RATE_DAILY","PERIOD"]
[368519820,1751194324794,-1361.21,0.00029863,3]
[368519821,1751194324804,-810.52,0.00029863,3]
[368519822,1751194324813,-335.340847,0.00029863,3]
[368519823,1751194324823,-314.286784,0.00029863,3]
[368519824,1751194324832,-1101.38629299,0.00029863,3]
[368519825,1751194325719,-490.0,0.00028767,3]
[368519826,1751194326818,-0.01331978,0.00027397,3]
[368519827,1751194327524,-132.05540429,0.00027397,3]
[368519828,1751194327760,-392.26,0.00027397,3]
[368519829,1751194328828,-793.36364634,0.00027397,3]
[368519830,1751194328839,-490.0,0.00027397,3]
[368519831,1751194328952,-1179.995678,0.00027397,3]
[368519832,1751194329021,-428.57595392,0.00027397,3]
[368519833,1751194346706,1500.0,0.00026645,120]
[368519834,1751194387791,3028.880288,7.945e-05,2]
[368519835,1751194388255,898.0,0.0002739,120]
[368519836,1751194390454,745.0,0.0002739,120]
[368519839,1751195136658,-500.0,0.000145,2]
[368519840,1751195136693,-500.0,0.000145,2]
[368519841,1751195136726,-494.19914527,0.000145,2]
[368519842,1751195136760,-250.0,0.00014531,2]
[368519843,1751195136793,-300.0,0.00014563,2]
[368519844,1751195136828,-250.0,0.00014609,2]
[368519845,1751195136862,-300.0,0.00014625,2]
[368519846,1751195136896,-173.82512827,0.0001465,2]
[368519847,1751195136932,-300.0,0.00014705,2]
[368519848,1751195136968,-250.0,0.00015,2]
[368519849,1751195137003,-249.0,0.00015949,2]
[368519850,1751195137037,-300.0,0.00015949,2]
[368519851,1751195137074,-1200.0,0.00015949,2]
[368519852,1751195137108,-300.0,0.0001595,2]
[368519853,1751195137142,-300.0,0.0001595,2]
[368519854,1751195137177,-250.0,0.0001595,2]
[368519855,1751195189879,256.02,0.00024842,120]
[368519856,1751195320826,-300.0,0.00017,2]
[368519857,1751195320849,-300.0,0.00017007,2]
[368519858,1751195320870,-300.0,0.00017013,2]
[368519859,1751195320892,-250.0,0.00017013,2]
[368519860,1751195320914,-793.27437265,0.00017027,2]
[368519861,1751195320936,-173.82512826,0.00017219,2]
[368519862,1751195320958,-300.0,0.00017319,2]
[368519863,1751195320979,-250.0,0.00017319,2]
[368519864,1751195321000,-1000.0,0.000175,2]
[368519865,1751195321021,-1680.0,0.00017526,2]
[368519866,1751195321042,-173.08,0.00017545,2]
[368519867,1751195321063,-151.0,0.00017622,2]
[368519868,1751195321084,-151.0,0.00017651,2]
[368519869,1751195321105,-151.0,0.00017676,2]
[368519870,1751195321126,-151.0,0.00017681,2]
[368519871,1751195321146,-151.0,0.00017685,2]
[368519872,1751195321168,-300.0,0.000187,2]
[368519873,1751195321189,-250.0,0.000187,2]
[368519874,1751195321210,-300.0,0.000187,2]
[368519875,1751195321230,-350.0,0.00019,2]
[368519876,1751195321251,-151.0,0.00019178,2]
[368519877,1751195321271,-181.39,0.00019254,2]
[368519878,1751195321292,-300.0,0.00019258,2]
[368519879,1751195321317,-2351.0,0.00019259,2]
[368519880,1751195321339,-156.587,0.00019726,2]
[368519881,1751195321360,-7371.296479,0.00020198,2]
[368519882,1751195321382,-162.380719,0.00020274,2]
[368519883,1751195321402,-1000.0,0.000203,2]
[368519884,1751195321422,-220.25565749,0.00020822,2]
[368519885,1751195321445,-420.0,0.00020986,2]
[368519886,1751195321470,-400.0,0.00021,2]
[368519887,1751195321491,-2765.04,0.0002106,2]
[368519888,1751195321511,-202.77843547,0.00021151,2]
[368519889,1751195321533,-3292.0,0.00021164,2]
[368519890,1751195321553,-318.22,0.00021451,2]
[368519891,1751195321573,-538.4,0.00021451,2]
[368519892,1751195321594,-1443.06,0.0002149,2]
[368519893,1751195321616,-167.01,0.00021581,2]
[368519894,1751195321637,-1000.0,0.00021747,2]
[368519895,1751195321659,-249.48,0.00021804,2]
[368519896,1751195321679,-1266.66,0.00021804,2]
[368519897,1751195321701,-1500.0,0.00021833,2]
[368519898,1751195321724,-12656.49,0.0002198,2]
[368519899,1751195321745,-341.36972295,0.00021985,2]
[368519900,1751195321766,-171.0,0.00022,2]
[368519901,1751195321787,-1082.82,0.00022035,2]
[368519902,1751195321808,-200.0,0.00022035,2]
[368519903,1751195321828,-2558.96,0.00022058,2]
[368519904,1751195321851,-256.02,0.00022082,2]
[368519905,1751195321874,-165.1,0.0002211,2]
[368519906,1751195321896,-154.0,0.0002211,2]
[368519907,1751195321917,-1313.5,0.00022133,2]
[368519908,1751195321939,-610.0,0.00022138,2]
[368519909,1751195321960,-150.0,0.00022165,2]
[368519910,1751195321980,-2997.93,0.00022165,2]
[368519911,1751195322002,-1884.87,0.00022166,2]
[368519912,1751195322023,-318.22,0.00022255,2]
[368519913,1751195322044,-191.28,0.00022272,2]
[368519914,1751195322065,-250.0,0.00022298,2]
[368519915,1751195322086,-173.82512826,0.00022336,2]
[368519916,1751195322107,-150.0,0.00022367,2]
[368519917,1751195322128,-1003.05174896,0.00022425,2]
[368519918,1751195322150,-23900.0,0.00022426,2]
[368519919,1751195322171,-500.0,0.00022436,2]
[368519920,1751195322192,-1508.29,0.00022441,2]
[368519921,1751195322212,-17157.23,0.0002251,2]
[368519922,1751195322234,-840.61,0.00022607,2]
[368519923,1751195322256,-840.61,0.00022613,2]
[368519924,1751195322278,-840.61,0.00022619,2]
[368519925,1751195322304,-840.61,0.00022625,2]
[368519926,1751195322325,-840.61,0.00022631,2]
[368519927,1751195322349,-840.61,0.00022637,2]
[368519928,1751195322372,-840.61,0.00022643,2]
[368519929,1751195322398,-840.61,0.00022649,2]
[368519930,1751195322421,-840.61,0.00022655,2]
[368519931,1751195322444,-840.61,0.00022661,2]
[368519932,1751195322466,-840.61,0.00022666,2]
[368519933,1751195322488,-840.61,0.00022672,2]
[368519934,1751195322508,-189.52,0.00022673,2]
[368519935,1751195322530,-840.61,0.00022678,2]
[368519936,1751195322552,-840.61,0.00022684,2]
[368519937,1751195322574,-840.61,0.0002269,2]
[368519938,1751195322595,-840.61,0.00022696,2]
[368519939,1751195322616,-840.61,0.00022702,2]
[368519940,1751195322639,-840.61,0.00022708,2]
[368519941,1751195322660,-840.61,0.00022714,2]
[368519942,1751195322681,-840.61,0.0002272,2]
[368519943,1751195322702,-166.93,0.00022835,2]
[368519944,1751195322724,-587.0,0.00022868,2]
[368519945,1751195322744,-3766.91,0.00022944,2]
[368519946,1751195322764,-1097.97,0.00022949,2]
[368519947,1751195322784,-450.0,0.00023,2]
[368519948,1751195335910,-171.0,0.00023014,7]
[368519949,1751195335932,-200.0,0.00023022,2]
[368519950,1751195335953,-318.22,0.0002306,2]
[368519951,1751195335975,-223.99,0.00023117,2]
[368519952,1751195335998,-4609.0,0.00023256,2]
[368519953,1751195336019,-5508.0,0.000234,5]
[368519954,1751195361274,-210.51047026,0.00023599,2]
[368519955,1751195406410,1534.19536575,0.0002739,120]
[368519959,1751195431577,-300.0,0.00023599,2]
[368519960,1751195431587,-300.0,0.00023717,2]
[368519961,1751195431596,-985.53784902,0.00023717,2]
[368519962,1751195431608,-514.46215098,0.00023717,2]
[368519963,1751195431617,-164.07713819,0.00023717,2]
[368519964,1751195431632,-85.92286181,0.00023717,2]
[368519965,1751195431642,-259.13,0.00023836,2]
[368519966,1751195431651,-318.22,0.00023864,2]
[368519967,1751195431659,-1126.49396823,0.00023879,2]
[368519968,1751195431671,-373.50603177,0.00023879,2]
[368519969,1751195431679,-250.0,0.00023879,2]
[368519970,1751195431688,-53.49396823,0.00023957,2]
[368519971,1751195431706,-418.76603177,0.00023957,2]
[368519972,1751195431717,-1006.64986912,0.00024138,2]
[368519973,1751195431726,-171.0,0.00024164,7]
[368519974,1751195431735,-92.57602656,0.00024464,2]
[368519975,1751195431760,-1107.42397344,0.00024464,2]
[368519976,1751195431769,-861.12652098,0.00024465,2]
[368519977,1751195431781,-138.87347902,0.00024465,2]
[368519978,1751195431791,-223.99,0.00024487,2]
[368519979,1751195431800,-1000.0,0.00024658,2]
[368519980,1751195431810,-318.22,0.00024668,2]
[368519981,1751195431819,-190.24778864,0.00024718,2]
[368519982,1751195431828,-166.93,0.0002472,2]
[368519983,1751195431839,-4061.73873224,0.00024867,2]
[368519984,1751195431851,-5880.0,0.00024867,2]
[368519985,1751195431862,-3550.000005,0.00024867,2]
[368519986,1751195431873,-1300.0,0.00024867,2]
[368519987,1751195431884,-404.35360807,0.00024867,2]
[368519988,1751195431899,-579.36353194,0.00024867,2]
[368519989,1751195431910,-420.54461945,0.00024867,2]
[368519990,1751195431921,-36799.6295033,0.00024867,2]
[368519991,1751195431938,-2000.0,0.000249,2]
[368519992,1751195431951,-822.3911179,0.000249,12]
[368519993,1751195431961,-500.0,0.00025,2]
[368519994,1751195431970,-200.0,0.00025195,7]
[368519995,1751195431980,-1778.72,0.00025322,2]
[368519996,1751195431990,-822.39111784,0.00025383,13]
[368519997,1751195431999,-822.39111784,0.00025866,14]
[368519999,1751195432009,-207.4,0.00025912,2]
[368520000,1751195432018,-6912.642,0.00025912,2]
[368520001,1751195432028,-178.42522448,0.00025912,2]
[368520002,1751195432037,-500.0,0.00025912,2]
[368520003,1751195432046,-500.0,0.00025912,2]
[368520004,1751195432056,-1000.0,0.00025912,2]
[368520006,1751195432065,-500.0,0.00025912,2]
[368520008,1751195432074,-1000.0,0.00025912,2]
[368520010,1751195432083,-500.0,0.00025912,2]
[368520012,1751195432093,-1000.0,0.00025912,2]
[368520014,1751195432102,-500.0,0.00025912,2]
[368520015,1751195432112,-1000.0,0.00025912,2]
[368520017,1751195432121,-500.0,0.00025912,2]
[368520019,1751195432130,-1000.0,0.00025912,2]
[368520020,1751195432139,-500.0,0.00025912,2]
[368520022,1751195432149,-300.0,0.00025912,2]
[368520024,1751195432158,-190.11712102,0.00025912,2]
[368520025,1751195432168,-300.0,0.00025912,2]
[368520027,1751195432177,-500.0,0.00025912,2]
[368520028,1751195432186,-300.0,0.00025912,2]
[368520029,1751195432196,-500.0,0.00025912,2]
[368520030,1751195432205,-300.0,0.00025912,2]
[368520031,1751195432215,-500.0,0.00025912,2]
[368520032,1751195432224,-300.0,0.00025912,2]
[368520033,1751195432233,-500.0,0.00025912,2]
[368520034,1751195432243,-300.0,0.00025912,2]
[368520035,1751195432251,-300.0,0.00025912,2]
[368520036,1751195432260,-300.0,0.00025912,2]
[368520037,1751195432269,-300.0,0.00025912,2]
[368520038,1751195432278,-300.0,0.00025912,2]
[368520039,1751195432287,-300.0,0.00025912,2]
[368520040,1751195432296,-500.0,0.00025912,2]
[368520041,1751195432305,-500.0,0.00025912,2]
[368520042,1751195432318,-500.0,0.00025912,2]
[368520043,1751195432327,-500.0,0.00025912,2]
[368520044,1751195432336,-500.0,0.00025912,2]
[368520045,1751195432345,-500.0,0.00025912,2]
[368520046,1751195432356,-154.62255046,0.00025912,2]
[368520047,1751195432365,-300.0,0.00025959,2]
[368520048,1751195432375,-1500.0,0.00025959,2]
[368520049,1751195432384,-250.0,0.00025959,2]
[368520050,1751195432395,-255.76775401,0.00025967,2]
[368520051,1751195432404,-168.0,0.00026051,2]
[368520052,1751195432414,-168.0,0.00026301,2]
[368520053,1751195432423,-173.08,0.00026317,2]
[368520054,1751195432432,-822.39111784,0.00026348,14]
[368520055,1751195432442,-274.12319345,0.0002646,2]
[368520056,1751195432451,-166.93,0.00026604,2]
[368520057,1751195432460,-168.0,0.00026634,2]
[368520058,1751195432470,-1680.0,0.00026638,2]
[368520059,1751195432479,-500.0,0.00026658,2]
[368520060,1751195432489,-822.39111784,0.00026831,15]
[368520061,1751195432498,-550.0,0.00027,2]
[368520062,1751195432507,-1000.0,0.00027184,2]
[368520063,1751195432517,-3033.4229,0.00027197,2]
[368520064,1751195432527,-2500.0,0.00027279,2]
[368520065,1751195432537,-215.0738,0.00027281,2]
[368520066,1751195432547,-288.9,0.00027281,2]
[368520067,1751195432557,-177.35301896,0.00027287,2]
[368520068,1751195432566,-228.8004574,0.00027287,2]
[368520069,1751195432575,-194.9397,0.00027297,2]
[368520070,1751195432585,-13790.0863,0.00027297,2]
[368520071,1751195432594,-1000.0,0.00027297,2]
[368520072,1751195432604,-4612.56758142,0.00027297,2]
[368520073,1751195432617,-387.43241858,0.00027297,2]
[368520074,1751195432626,-44893.7933,0.00027297,3]
[368520075,1751195432635,-151.99210357,0.00027297,2]
[368520076,1751195432645,-150.0,0.000273,2]
[368520077,1751195432654,-822.39111784,0.00027314,16]
[368520078,1751195432663,-500.0,0.00027373,2]
[368520079,1751195432673,-500.0,0.00027373,2]
[368520080,1751195432682,-440.16588761,0.00027373,2]
[368520081,1751195432692,-498.58718076,0.00027373,2]
[368520082,1751195432701,-310.887074,0.00027373,2]
[368520083,1751195433527,-189.112926,0.00027373,2]
[368520084,1751195433537,-500.0,0.00027373,2]
[368520085,1751195433546,-250.06300735,0.00027373,2]
[368520086,1751195433560,-249.93699265,0.00027373,2]
[368520087,1751195433569,-500.0,0.00027373,2]
[368520088,1751195433578,-500.0,0.00027373,2]
[368520089,1751195433588,-500.0,0.00027373,2]
[368520090,1751195433597,-500.0,0.00027373,2]
[368520091,1751195433607,-3907.4050491,0.00027379,2]
[368520092,1751195433619,-254.77363097,0.00027379,2]
[368520096,1751195437594,-258.19,0.00026225,2]
[368520097,1751195437604,-88888.0,0.00027297,3]
[368520098,1751195437613,-117377.92689393,0.00027379,2]
[368520099,1751195437622,-140238.583354,0.00027387,2]
[368520100,1751195437633,-213967.606003,0.00027387,2]
[368520101,1751195437642,-159.51,0.0002739,2]
[368520102,1751195437652,-554.6472044,0.00027396,2]
[368520103,1751195437662,-249.52451142,0.00027396,2]
[368520104,1751195437671,-360.00584435,0.00027396,2]
[368520105,1751195437681,-500.0,0.00027396,2]
[368520106,1751195437690,-500.0,0.00027396,2]
[368520107,1751195437700,-500.0,0.00027396,2]
[368520108,1751195437710,-500.0,0.00027396,2]
[368520109,1751195437719,-500.0,0.00027396,2]
[368520110,1751195437728,-500.0,0.00027396,2]
[368520111,1751195437738,-500.0,0.00027396,2]
[368520112,1751195437747,-500.0,0.00027396,2]
[368520113,1751195437756,-500.0,0.00027396,2]
[368520114,1751195437766,-500.0,0.00027396,2]
[368520115,1751195437775,-435.13310918,0.00027396,2]
[368520116,1751195437784,-170.62725809,0.00027396,2]
[368520117,1751195437794,-500.0,0.00027396,2]
[368520118,1751195437803,-500.0,0.00027396,2]
[368520119,1751195437813,-500.0,0.00027396,2]
[368520120,1751195437822,-500.0,0.00027396,2]
[368520121,1751195437833,-500.0,0.00027396,2]
[368520122,1751195437849,-344.10730685,0.00027397,2]
[368520124,1751195437865,-490.0,0.00027397,3]
[368520126,1751195437878,-490.0,0.00027397,3]
[368520128,1751195437889,-490.0,0.00027397,3]
[368520131,1751195437902,-490.0,0.00027397,3]
[368520133,1751195437916,-490.0,0.00027397,3]
[368520135,1751195437929,-490.0,0.00027397,3]
[368520138,1751195437943,-538.26345886,0.00027397,3]
[368520140,1751195437957,-492.8554583,0.00027397,3]
[368520141,1751195437970,-490.7843343,0.00027397,3]
[368520142,1751195437982,-283.71875194,0.00027397,3]
[368520143,1751195437993,-490.0,0.00027397,3]
[368520144,1751195438007,-492.56639002,0.00027397,3]
[368520145,1751195438021,-301.20696989,0.00027397,3]
[368520146,1751195438034,-490.0,0.00027397,3]
[368520147,1751195438048,-490.0,0.00027397,3]
[368520148,1751195438062,-265.39651793,0.00027397,3]
[368520149,1751195438075,-633.4028169,0.00027397,3]
[368520150,1751195438088,-491.42106617,0.00027397,3]
[368520151,1751195438103,-490.0,0.00027397,3]
[368520152,1751195438116,-491.12107372,0.00027397,3]
[368520153,1751195438129,-494.21062985,0.00027397,3]
[368520154,1751195438142,-491.67222406,0.00027397,3]
[368520155,1751195438155,-572.57,0.00027397,3]
[368520157,1751195438168,-490.0,0.00027397,3]
[368520158,1751195438183,-490.0,0.00027397,3]
[368520159,1751195438195,-828.1,0.00027397,3]
[368520160,1751195438207,-490.0,0.00027397,3]
[368520161,1751195438219,-490.0,0.00027397,3]
[368520162,1751195438229,-490.0,0.00027397,3]
[368520163,1751195438241,-490.0,0.00027397,3]
[368520164,1751195438257,-553.99581295,0.00027397,3]
[368520166,1751195438270,-490.0,0.00027397,3]
[368520168,1751195438280,-490.0,0.00027397,3]
[368520170,1751195438291,-490.0,0.00027397,3]
[368520173,1751195438302,-490.0,0.00027397,3]
[368520175,1751195438315,-490.0,0.00027397,3]
[368520177,1751195438330,-490.0,0.00027397,3]
[368520180,1751195438341,-490.0,0.00027397,3]
[368520182,1751195438352,-490.0,0.00027397,3]
[368520184,1751195438364,-490.0,0.00027397,3]
[368520186,1751195438376,-490.0,0.00027397,3]
[368520189,1751195438393,-593.75429055,0.00027397,3]
[368520191,1751195438405,-490.0,0.00027397,3]
[368520193,1751195438415,-490.0,0.00027397,3]
[368520195,1751195438427,-490.0,0.00027397,3]
[368520198,1751195438438,-491.62923657,0.00027397,3]
[368520200,1751195438450,-490.0,0.00027397,3]
[368520202,1751195438460,-490.0,0.00027397,3]
[368520204,1751195438472,-491.37793079,0.00027397,3]
[368520207,1751195438483,-490.0,0.00027397,3]
[368520209,1751195438494,-490.0,0.00027397,3]
[368520211,1751195438506,-490.0,0.00027397,3]
[368520213,1751195438516,-490.0,0.00027397,3]
[368520215,1751195438527,-490.0,0.00027397,3]
[368520218,1751195438538,-490.0,0.00027397,3]
[368520220,1751195438550,-500.0,0.00027397,3]
[368520222,1751195438561,-500.0,0.00027397,3]
[368520224,1751195438572,-490.0,0.00027397,3]
[368520227,1751195438583,-490.0,0.00027397,3]
[368520229,1751195438594,-490.0,0.00027397,3]
[368520231,1751195438606,-490.0,0.00027397,3]
[368520233,1751195438617,-490.0,0.00027397,3]
[368520235,1751195438628,-490.0,0.00027397,3]
[368520238,1751195438640,-490.0,0.00027397,3]
[368520240,1751195438651,-490.0,0.00027397,3]
[368520242,1751195438664,-736.21,0.00027397,3]
[368520244,1751195438675,-490.0,0.00027397,3]
[368520247,1751195438687,-490.0,0.00027397,3]
[368520249,1751195438698,-379.99349337,0.00027397,3]
[368520251,1751195438709,-490.0,0.00027397,3]
[368520253,1751195438719,-493.32490657,0.00027397,3]
[368520255,1751195438731,-490.0,0.00027397,3]
[368520257,1751195438742,-496.47953714,0.00027397,3]
[368520260,1751195438753,-522.61023119,0.00027397,3]
[368520262,1751195438764,-1000.0,0.00027397,3]
[368520264,1751195438775,-490.0,0.00027397,3]
[368520266,1751195438787,-490.0,0.00027397,3]
[368520268,1751195438799,-490.0,0.00027397,3]
[368520271,1751195438811,-490.0,0.00027397,3]
[368520273,1751195438823,-490.0,0.00027397,3]
[368520275,1751195438835,-490.0,0.00027397,3]
[368520277,1751195438847,-240.99165791,0.00027397,3]
[368520280,1751195438859,-490.0,0.00027397,3]
[368520282,1751195438870,-498.5,0.00027397,3]
[368520284,1751195438882,-490.0,0.00027397,3]
[368520286,1751195438893,-490.0,0.00027397,3]
[368520288,1751195438905,-500.0,0.00027397,3]
[368520291,1751195438917,-490.0,0.00027397,3]
[368520293,1751195438929,-490.0,0.00027397,3]
[368520295,1751195438940,-500.0,0.00027397,3]
[368520298,1751195438952,-491.73888225,0.00027397,3]
[368520300,1751195438963,-490.0,0.00027397,3]
[368520302,1751195438975,-490.0,0.00027397,3]
[368520304,1751195438987,-490.0,0.00027397,3]
[368520307,1751195438998,-490.0,0.00027397,3]
[368520309,1751195439010,-490.0,0.00027397,3]
[368520311,1751195439022,-297.2542423,0.00027397,3]
[368520313,1751195439034,-490.0,0.00027397,3]
[368520315,1751195439046,-490.0,0.00027397,3]
[368520317,1751195439058,-490.0,0.00027397,3]
[368520319,1751195439070,-490.0,0.00027397,3]
[368520321,1751195439081,-490.0,0.00027397,3]
[368520323,1751195439093,-490.0,0.00027397,3]
[368520325,1751195439104,-490.0,0.00027397,3]
[368520328,1751195439115,-490.0,0.00027397,3]
[368520330,1751195439126,-490.0,0.00027397,3]
[368520332,1751195439138,-490.0,0.00027397,3]
[368520334,1751195439149,-490.0,0.00027397,3]
[368520336,1751195439160,-490.0,0.00027397,3]
[368520338,1751195439171,-490.0,0.00027397,3]
[368520341,1751195439183,-490.0,0.00027397,3]
[368520343,1751195439194,-490.0,0.00027397,3]
[368520345,1751195439206,-493.41605497,0.00027397,3]
[368520347,1751195439217,-490.0,0.00027397,3]
[368520349,1751195439228,-490.0,0.00027397,3]
[368520352,1751195439239,-413.03321713,0.00027397,3]
[368520354,1751195439251,-490.0,0.00027397,3]
[368520356,1751195439262,-490.0,0.00027397,3]
[368520358,1751195439274,-491.23108107,0.00027397,3]
[368520360,1751195439285,-490.0,0.00027397,3]
[368520362,1751195439297,-235.58047918,0.00027397,3]
[368520364,1751195439308,-490.0,0.00027397,3]
[368520366,1751195439324,-1266.21,0.00027397,3]
[368520369,1751195439335,-490.0,0.00027397,3]
[368520372,1751195439346,-490.0,0.00027397,3]
[368520374,1751195439359,-490.0,0.00027397,3]
[368520376,1751195439370,-490.0,0.00027397,3]
[368520378,1751195439381,-490.0,0.00027397,3]
[368520380,1751195439395,-490.0,0.00027397,3]
[368520382,1751195439406,-490.0,0.00027397,3]
[368520385,1751195439417,-490.0,0.00027397,3]
[368520387,1751195439429,-490.0,0.00027397,3]
[368520389,1751195439440,-690.25,0.00027397,3]
[368520391,1751195439452,-490.0,0.00027397,3]
[368520393,1751195439463,-490.0,0.00027397,3]
[368520395,1751195439474,-598.13,0.00027397,3]
[368520398,1751195439486,-490.0,0.00027397,3]
[368520400,1751195439498,-563.03588155,0.00027397,3]
[368520402,1751195439509,-490.0,0.00027397,3]
[368520404,1751195439521,-490.0,0.00027397,3]
[368520406,1751195439531,-523.97,0.00027397,3]
[368520409,1751195439543,-679.56,0.00027397,3]
[368520411,1751195439555,-1113.04,0.00027397,3]
[368520413,1751195439566,-490.0,0.00027397,3]
[368520415,1751195439577,-490.0,0.00027397,3]
[368520417,1751195439589,-490.0,0.00027397,3]
[368520420,1751195439600,-501.48555712,0.00027397,3]
[368520422,1751195439611,-490.0,0.00027397,3]
[368520424,1751195439622,-494.42483935,0.00027397,3]
[368520426,1751195439633,-490.0,0.00027397,3]
[368520428,1751195439644,-490.0,0.00027397,3]
[368520430,1751195439655,-490.0,0.00027397,3]
[368520433,1751195439666,-490.0,0.00027397,3]
[368520435,1751195439677,-594.99,0.00027397,3]
[368520437,1751195439689,-490.0,0.00027397,3]
[368520439,1751195439701,-490.0,0.00027397,3]
[368520441,1751195439712,-490.0,0.00027397,3]
[368520444,1751195439723,-490.0,0.00027397,3]
[368520446,1751195439734,-490.0,0.00027397,3]
[368520448,1751195439745,-490.0,0.00027397,3]
[368520450,1751195439756,-490.0,0.00027397,3]
[368520452,1751195439767,-490.0,0.00027397,3]
[368520455,1751195439778,-490.0,0.00027397,3]
[368520457,1751195439791,-490.0,0.00027397,3]
[368520459,1751195439804,-490.0,0.00027397,3]
[368520461,1751195439815,-1446.76,0.00027397,3]
[368520464,1751195439826,-327.09154425,0.00027397,3]
[368520466,1751195439837,-490.0,0.00027397,3]
[368520468,1751195439849,-490.0,0.00027397,3]
[368520470,1751195439859,-490.0,0.00027397,3]
[368520472,1751195439870,-490.0,0.00027397,3]
[368520474,1751195439880,-490.0,0.00027397,3]
[368520477,1751195439892,-490.0,0.00027397,3]
[368520479,1751195439903,-490.0,0.00027397,3]
[368520481,1751195439913,-663.42,0.00027397,3]
[368520483,1751195439924,-1256.21,0.00027397,3]
[368520485,1751195439935,-490.0,0.00027397,3]
[368520488,1751195439946,-490.0,0.00027397,3]
[368520490,1751195439957,-490.0,0.00027397,3]
[368520492,1751195439968,-490.0,0.00027397,3]
[368520494,1751195439979,-490.0,0.00027397,3]
[368520496,1751195439990,-490.0,0.00027397,3]
[368520498,1751195440002,-264.22630552,0.00027397,3]
[368520501,1751195440012,-1418.54,0.00027397,3]
[368520503,1751195440027,-490.0,0.00027397,3]
[368520505,1751195440038,-490.0,0.00027397,3]
[368520508,1751195440050,-490.0,0.00027397,3]
[368520510,1751195440061,-490.0,0.00027397,3]
[368520512,1751195440072,-490.0,0.00027397,3]
[368520514,1751195440083,-490.0,0.00027397,3]
[368520516,1751195440095,-490.0,0.00027397,3]
[368520518,1751195440106,-490.0,0.00027397,3]
[368520521,1751195440118,-490.0,0.00027397,3]
[368520523,1751195440129,-490.0,0.00027397,3]
[368520525,1751195440141,-490.0,0.00027397,3]
[368520527,1751195440152,-490.0,0.00027397,3]
[368520529,1751195440163,-490.0,0.00027397,3]
[368520532,1751195440174,-496.37,0.00027397,3]
[368520535,1751195440185,-490.0,0.00027397,3]
[368520537,1751195440196,-1013.41,0.00027397,3]
[368520539,1751195440207,-490.0,0.00027397,3]
[368520541,1751195440218,-490.0,0.00027397,3]
[368520544,1751195440229,-1113.41,0.00027397,3]
[368520546,1751195440240,-490.0,0.00027397,3]
[368520548,1751195440251,-490.0,0.00027397,3]
[368520550,1751195440261,-490.0,0.00027397,3]
[368520552,1751195440272,-490.0,0.00027397,3]
[368520554,1751195440283,-490.0,0.00027397,3]
[368520557,1751195440294,-490.0,0.00027397,3]
[368520559,1751195440305,-490.0,0.00027397,3]
[368520561,1751195440317,-490.0,0.00027397,3]
[368520563,1751195440329,-490.0,0.00027397,3]
[368520565,1751195440340,-643.24,0.00027397,3]
[368520567,1751195440351,-490.0,0.00027397,3]
[368520569,1751195440364,-490.0,0.00027397,3]
[368520572,1751195440375,-490.0,0.00027397,3]